bitfinex/quotes_SOLUSD_20251103
["timestamp","ask_amount","ask_price","bid_price","bid_amount"]
[1762167115244,0.71,175.25,175.24,2.82053238]
[1762167115560,11.84,175.26,175.24,2.82053238]
[1762167115756,12.55,175.26,175.25,2.82053238]
[1762167116264,18.25580851,175.26,175.24,2.82053238]
[1762167116443,0.72,175.25,175.23,2.82053238]
[1762167117556,5.70645971,175.24,175.23,2.82053238]
[1762167118079,6.42645971,175.24,175.23,2.82053238]
[1762167119791,6.42645971,175.24,175.22,2.82053238]
[1762167119971,12.36,175.23,175.22,2.82053238]
[1762167120473,11.64,175.23,175.22,2.82053238]
[1762167121588,12.36,175.23,175.17,0.71]
[1762167121791,0.72,175.22,175.13,15.49881745]
[1762167122084,2.82053238,175.19,175.14,2.82053238]
[1762167122261,12.36,175.18,175.14,2.82053238]
[1762167122467,12.36,175.18,175.08,20.592]
[1762167122468,0.72,175.17,175.12,1.80495147]
[1762167122875,0.72,175.17,175.13,1.80495147]
[1762167123520,5.70906599,175.16,175.13,1.80495147]
[1762167123876,0.72,175.15,175.13,1.80495147]
[1762167124067,11.64,175.14,175.13,1.80495147]
[1762167124280,11.64,175.14,175.08,21.302]
[1762167124483,11.64,175.14,175.1,1.80495147]
[1762167124484,0.72,175.13,175.1,1.80495147]
[1762167125603,5.71037003,175.12,175.06,0.1]
[1762167125807,0.72,175.11,175.08,1.80495147]
[1762167126014,11.64,175.1,175.08,1.80495147]
[1762167126177,11.64,175.1,175.06,0.1]
[1762167126372,11.64,175.1,175.08,1.80495147]
[1762167126373,0.72,175.09,175.08,1.80495147]
[1762167126572,0.72,175.09,175.06,0.1]
[1762167126974,1.80495147,175.08,175.06,0.1]
[1762167127187,1.80495147,175.07,175.05,0.02]
[1762167127405,11.64,175.06,175.05,0.02]
[1762167127599,18.0123272,175.06,175.05,0.02]
[1762167127969,19.81727867,175.06,175.05,0.02]
[1762167130890,18.0123272,175.06,175.05,0.02]
[1762167131095,19.81727867,175.06,175.05,0.02]
[1762167131300,19.95944024,175.06,175.05,0.02]
[1762167131490,18.0123272,175.06,175.05,0.02]
[1762167131812,19.81727867,175.06,175.05,0.02]
[1762167132903,18.0123272,175.06,175.05,0.02]
[1762167133405,21.95944023,175.06,175.05,0.02]
[1762167133701,21.14120703,175.06,175.05,0.02]
[1762167133874,22.9461585,175.06,175.05,0.02]
[1762167134080,41.59104546,175.06,175.05,0.02]
[1762167134306,43.39599693,175.06,175.05,0.02]
[1762167134789,41.59104546,175.06,175.05,0.02]
[1762167136404,43.39599693,175.06,175.05,0.02]
[1762167140088,45.34310997,175.06,175.05,0.02]
[1762167140412,24.75110997,175.06,175.05,0.02]
[1762167140591,20.592,175.03,175.01,0.1]
[1762167140787,11.64,175.02,175.01,0.1]
[1762167140987,14.10495147,175.02,175.01,0.1]
[1762167141412,31.27495147,175.02,175.01,0.1]
[1762167141707,19.96074576,175.02,175.01,1e-08]
[1762167145488,40.41058419,175.02,175.01,1e-08]
[1762167146324,17.37363272,175.02,175.01,1e-08]
[1762167146617,11.66,175.02,175.01,1e-08]
[1762167146991,17.37363272,175.02,175.01,1e-08]
[1762167150025,11.66,175.02,175.01,1e-08]
[1762167150930,17.37363272,175.02,175.01,1e-08]
[1762167152804,19.83858419,175.02,175.01,1e-08]
[1762167153117,40.43058419,175.02,175.01,1e-08]
[1762167155330,39.77058419,175.02,175.01,1e-08]
[1762167155512,40.43058419,175.02,175.01,1e-08]
[1762167156518,44.33772813,175.02,175.01,1e-08]
[1762167159410,11.66,174.98,174.96,0.66]
[1762167161211,17.37507924,174.98,174.96,0.66]
[1762167162705,11.66,174.98,174.96,0.66]
[1762167163202,17.37506804,174.98,174.96,0.66]
[1762167163405,17.37506804,174.98,174.96,2.46495147]
[1762167163721,17.37506804,174.98,174.97,0.66]
[1762167164317,21.17067658,174.98,174.97,0.66]
[1762167164626,21.17067658,174.98,174.96,1.80495147]
[1762167164842,17.37506804,174.98,174.96,2.46495147]
[1762167165006,11.66,174.98,174.97,0.66]
[1762167165209,15.45582838,174.98,174.97,0.66]
[1762167166135,15.45582838,174.98,174.97,8.18021694]
[1762167166136,3.79582838,174.98,174.97,8.18021694]
[1762167166312,11.66,174.98,174.97,0.66]
[1762167166629,17.26054283,174.98,174.94,0.1]
[1762167166819,3.79559136,174.97,174.94,0.76]
[1762167167006,15.45559136,174.96,174.94,0.76]
[1762167167210,3.79559136,174.95,174.94,0.76]
[1762167170015,3.79559136,174.95,174.94,2.56495147]
[1762167170330,3.79559136,174.95,174.94,8.28119703]
[1762167170524,15.45559136,174.95,174.94,8.28119703]
[1762167170730,15.47487459,174.95,174.94,8.28119703]
[1762167170923,15.4738753,174.95,174.94,8.28119703]
[1762167172437,15.4738753,174.95,174.94,2.56495147]
[1762167172626,15.4738753,174.95,174.94,8.28119703]
[1762167174237,3.8138753,174.95,174.94,8.28119703]
[1762167174537,15.4738753,174.95,174.94,8.28119703]
[1762167175442,11.66,174.95,174.94,8.28119703]
[1762167181839,11.66,174.95,174.94,0.1]
[1762167182028,11.66,174.95,174.94,0.77]
[1762167182429,11.66,174.95,174.94,3.59672252]
[1762167184025,11.66,174.95,174.94,9.31296808]
[1762167184425,11.66,174.95,174.94,0.77]
[1762167184632,11.66,174.95,174.94,3.59672252]
[1762167184833,11.66,174.95,174.94,0.77]
[1762167185044,12.32,174.95,174.94,0.1]
[1762167185348,20.86264135,174.95,174.94,0.1]
[1762167185650,46.17171619,174.95,174.94,1e-08]
[1762167185827,46.17171619,174.95,174.89,0.1]
[1762167185828,20.592,174.92,174.89,0.1]
[1762167186026,12.3,174.91,174.89,0.1]
[1762167186243,3.82587468,174.9,174.89,0.1]
[1762167186445,7.3125972,174.9,174.89,0.1]
[1762167187926,13.03015008,174.9,174.89,0.1]
[1762167188744,3.82587468,174.9,174.89,0.77]
[1762167188952,11.66,174.9,174.89,0.1]
[1762167189137,15.48587468,174.9,174.89,0.77]
[1762167189447,11.66,174.9,174.89,3.59672252]
[1762167190430,11.66,174.9,174.89,9.31460233]
[1762167191155,11.66,174.9,174.89,0.1]
[1762167192656,17.37755288,174.9,174.89,0.1]
[1762167192830,16.13281613,174.9,174.89,0.1]
[1762167193035,21.85036901,174.9,174.89,0.1]
[1762167193347,21.19036901,174.9,174.89,0.1]
[1762167193729,21.85036901,174.9,174.89,0.1]
[1762167194756,21.19036901,174.9,174.89,0.1]
[1762167196431,21.85036901,174.9,174.89,0.1]
[1762167197453,21.19036901,174.9,174.89,0.1]
[1762167198248,17.37755288,174.9,174.89,0.1]
[1762167198444,20.592,174.94,174.89,0.77]
[1762167198649,16.12964096,174.93,174.89,0.77]
[1762167198867,3.80964096,174.92,174.89,0.77]
[1762167199049,3.80964096,174.92,174.89,0.1]
[1762167199463,9.20394852,174.91,174.89,0.1]
[1762167199765,14.48672252,174.9,174.89,0.1]
[1762167199976,18.95636348,174.9,174.89,0.1]
[1762167200155,16.12964096,174.9,174.89,0.1]
[1762167200781,18.95636348,174.9,174.89,0.1]
[1762167201070,16.12964096,174.9,174.89,0.1]
[1762167201668,21.84719384,174.9,174.89,0.1]
[1762167202539,24.67391636,174.9,174.89,0.1]
[1762167203170,21.84719384,174.9,174.89,0.1]
[1762167204065,21.18719384,174.9,174.89,0.1]
[1762167205467,21.18572967,174.9,174.89,0.1]
[1762167205664,15.46817679,174.9,174.89,0.1]
[1762167205965,11.66,174.9,174.89,3.59672252]
[1762167207159,11.66,174.9,174.89,0.77]
[1762167207864,11.66,174.9,174.89,0.1]
[1762167208075,15.46702622,174.9,174.89,0.1]
[1762167208666,15.46674208,174.9,174.89,0.1]
[1762167209365,15.46725945,174.9,174.89,0.1]
[1762167210256,21.18481233,174.9,174.89,0.1]
[1762167211167,21.84481233,174.9,174.89,0.1]
[1762167211359,24.67153485,174.9,174.89,0.1]
[1762167212249,24.81369642,174.9,174.89,0.1]
[1762167212457,20.73416157,174.88,174.87,0.1]
[1762167212681,36.20142102,174.88,174.87,0.1]
[1762167212878,39.68814354,174.88,174.87,0.1]
[1762167213678,43.64425281,174.88,174.87,0.1]
[1762167213973,46.53573706,174.88,174.87,0.1]
[1762167214170,41.77746622,174.88,174.87,0.1]
[1762167214755,9.52546622,174.88,174.87,0.1]
[1762167214952,21.18546622,174.88,174.87,0.1]
[1762167215571,15.46725945,174.88,174.87,0.1]
[1762167215786,1.99999999,174.95,174.87,12.1719788]
[1762167215787,4.75827084,174.95,174.87,12.1719788]
[1762167215981,0.69,174.94,174.91,2.82672252]
[1762167216273,0.69,174.94,174.87,24.21872252]
[1762167216274,18.06632002,174.94,174.88,2.82672252]
[1762167216454,18.06632002,174.94,174.89,2.82672252]
[1762167216663,18.06632002,174.94,174.9,2.82672252]
[1762167216857,0.69,174.93,174.87,5.81850294]
[1762167217062,11.66,174.92,174.9,2.82672252]
[1762167217280,11.66,174.92,174.87,0.1]
[1762167217590,0.69,174.91,174.87,0.1]
[1762167217746,2.82672252,174.9,174.87,0.1]
[1762167218052,17.37807975,174.89,174.87,0.1]
[1762167218450,0.69,174.88,174.87,0.1]
[1762167218872,2.82672252,174.9,174.87,0.1]
[1762167218873,6.40763533,174.9,174.87,0.1]
[1762167219076,11.66,174.89,174.87,2.92672252]
[1762167219771,0.69,174.88,174.87,0.1]
[1762167222881,11.66,174.89,174.87,0.1]
[1762167223657,11.66,174.89,174.87,2.92672252]
[1762167224578,11.66,174.89,174.87,0.1]
[1762167224960,11.66,174.89,174.87,8.64516762]
[1762167225282,11.66,174.89,174.88,2.82672252]
[1762167226692,0.69,174.93,174.88,8.54474706]
[1762167226874,30.51827084,174.96,174.91,2.82672252]
[1762167227057,11.66,174.95,174.92,2.82672252]
[1762167227252,11.66,174.95,174.93,2.82672252]
[1762167227660,3.81645626,174.94,174.93,2.82672252]
[1762167228184,3.81648252,174.94,174.93,2.82672252]
[1762167228674,3.81648252,174.94,174.9,5.71748519]
[1762167228876,4.50648252,174.93,174.88,5.71820677]
[1762167229077,15.47648252,174.92,174.88,5.71820677]
[1762167229280,3.81648252,174.91,174.9,2.82672252]
[1762167230956,3.81648252,174.91,174.9,8.5442754]
[1762167231662,11.66,174.92,174.9,8.5442754]
[1762167231858,11.66,174.92,174.91,2.82672252]
[1762167232881,11.66,174.92,174.91,8.54394852]
[1762167238566,11.66,174.92,174.91,5.717226]
[1762167238769,11.66,174.92,174.91,8.54394852]
[1762167239464,12.33,174.92,174.88,20.592]
[1762167239673,11.66,174.92,174.89,2.82672252]
[1762167239862,11.66,174.92,174.9,2.82672252]
[1762167240064,11.66,174.92,174.91,2.82672252]
[1762167241182,11.66,174.92,174.91,8.54394852]
[1762167241576,11.66,174.92,174.9,5.71749532]
[1762167241769,11.66,174.92,174.91,2.82672252]
[1762167241966,12.33,174.92,174.9,2.82672252]
[1762167242171,0.67,174.91,174.89,8.5445979]
[1762167243070,11.66,174.92,174.9,2.82672252]
[1762167243270,11.66,174.92,174.91,5.717226]
[1762167243467,11.66,174.92,174.91,8.54394852]
[1762167243868,11.66,174.92,174.91,5.717226]
[1762167244183,12.33,174.92,174.9,8.54424099]
[1762167244368,12.33,174.92,174.9,7.52717565]
[1762167244568,11.66,174.92,174.9,7.52717565]
[1762167245269,0.67,174.91,174.89,7.52748179]
[1762167246290,0.67,174.91,174.9,1.80965718]
[1762167246473,0.67,174.91,174.89,1.80965718]
[1762167247195,11.66,174.92,174.9,1.80965718]
[1762167247364,12.33,174.92,174.91,1.80965718]
[1762167247694,11.66,174.92,174.91,1.80965718]
[1762167247900,6.38531922,174.97,174.91,1.80965718]
[1762167248107,15.44908039,174.96,174.94,1.80965718]
[1762167248391,3.80908039,174.95,174.94,1.80965718]
[1762167248775,4.47908039,174.95,174.93,1.80965718]
[1762167249695,4.47908039,174.95,174.93,7.52621411]
[1762167250190,3.80908039,174.95,174.93,7.52621411]
[1762167250370,4.47908039,174.95,174.93,7.52621411]
[1762167252291,3.80908039,174.95,174.92,7.52649329]
[1762167252681,4.47908039,174.95,174.92,7.52649329]
[1762167254473,4.47908039,174.95,174.92,5.71683611]
[1762167254678,4.47908039,174.95,174.92,7.52649329]
[1762167255297,3.80908039,174.95,174.92,7.52649329]
[1762167255483,0.67,174.94,174.92,7.52649329]
[1762167255684,11.64,174.93,174.92,7.52649329]
[1762167256400,11.64,174.93,174.91,7.5268078]
[1762167256608,11.64,174.93,174.92,1.80965718]
[1762167257382,12.31,174.93,174.91,1.80965718]
[1762167257809,0.67,174.92,174.9,1.80965718]
[1762167259103,0.67,174.96,174.91,1.80965718]
[1762167259303,15.44919515,174.95,174.89,14.29469952]
[1762167259494,11.64,174.94,174.89,14.29469952]
[1762167259680,11.64,174.94,174.93,1.80965718]
[1762167260382,15.4519855,174.94,174.93,1.80965718]
[1762167260578,21.83823106,174.94,174.87,26.41052045]
[1762167260802,4.4814761,174.93,174.87,26.41052045]
[1762167261004,4.4814761,174.93,174.89,1.80965718]
[1762167261208,0.67,174.92,174.89,1.80965718]
[1762167261412,11.64,174.91,174.89,7.5274377]
[1762167261790,11.64,174.91,174.9,1.80965718]
[1762167262109,12.31,174.91,174.9,1.80965718]
[1762167262713,11.64,174.91,174.9,1.80965718]
[1762167262910,0.67,174.96,174.9,1.80965718]
[1762167263092,0.67,174.96,174.94,1.80965718]
[1762167263093,15.45144104,174.95,174.94,1.80965718]
[1762167263708,16.12144104,174.95,174.94,1.80965718]
[1762167263901,16.12144104,174.95,174.92,1.80965718]
[1762167264212,4.48144104,174.94,174.91,1.80965718]
[1762167264505,3.81144104,174.93,174.92,1.80965718]
[1762167265383,3.81144104,174.94,174.93,5.71657234]
[1762167265588,3.81144104,174.94,174.93,7.52622952]
[1762167265801,3.81144104,174.94,174.93,1.80965718]
[1762167266611,4.52144104,174.94,174.93,1.80965718]
[1762167266797,4.52144104,174.94,174.91,1.80965718]
[1762167267002,4.52144104,174.93,174.91,1.80965718]
[1762167267200,15.45144104,174.92,174.91,1.80965718]
[1762167267517,15.45144104,174.92,174.91,7.52688318]
[1762167268313,15.45144104,174.92,174.91,5.717226]
[1762167268498,15.45144104,174.92,174.89,5.71766334]
[1762167268825,11.64,174.92,174.89,5.71766334]
[1762167269005,12.35,174.92,174.89,5.71766334]
[1762167269510,12.35,174.92,174.88,14.29487331]
[1762167269511,3.82333475,174.91,174.88,20.01308008]
[1762167269704,11.64,174.92,174.88,20.01308008]
[1762167270016,3.82389023,174.91,174.88,20.01308008]
[1762167270206,11.64,174.92,174.88,20.01308008]
[1762167270419,3.82474034,174.91,174.88,20.01308008]
[1762167270618,12.35,174.92,174.9,1.80965718]
[1762167270915,4.53488941,174.91,174.87,0.1]
[1762167271125,23.93733077,174.92,174.87,0.1]
[1762167271126,4.53488941,174.9,174.87,0.1]
[1762167271307,3.82488941,174.89,174.87,0.1]
[1762167271501,15.46488941,174.88,174.87,7.62815442]
[1762167272511,15.46488941,174.88,174.87,1.90965718]
[1762167272709,16.17488941,174.88,174.87,0.1]
[1762167274124,16.17488941,174.88,174.87,1.90965718]
[1762167274326,16.17488941,174.88,174.87,0.1]
[1762167275723,21.89309618,174.88,174.87,0.1]
[1762167276101,28.47335651,174.88,174.83,0.1]
[1762167276300,4.53488941,174.87,174.85,1.80965718]
[1762167276514,6.42749106,174.91,174.86,1.80965718]
[1762167276722,15.45828427,174.9,174.87,1.80965718]
[1762167276906,3.81828427,174.89,174.87,1.80965718]
[1762167277101,3.81828427,174.88,174.87,1.80965718]
[1762167277428,15.45828427,174.88,174.87,1.80965718]
[1762167277935,15.45828427,174.88,174.83,20.14943237]
[1762167278112,11.64,174.88,174.86,5.71859634]
[1762167278302,11.64,174.88,174.87,1.80965718]
[1762167278500,15.4571444,174.88,174.87,1.80965718]
[1762167279526,16.1671444,174.88,174.87,1.80965718]
[1762167279732,16.1671444,174.88,174.86,7.52825352]
[1762167279924,12.35,174.88,174.86,7.52825352]
[1762167280228,4.77060315,174.93,174.87,1.80965718]
[1762167280407,4.77060315,174.93,174.84,20.01751857]
[1762167280408,16.18811467,174.92,174.9,1.80965718]
[1762167280610,3.81811467,174.91,174.9,1.80965718]
[1762167280916,4.52811467,174.91,174.9,1.80965718]
[1762167281122,4.52811467,174.91,174.89,1.80965718]
[1762167281333,11.66,174.92,174.89,1.80965718]
[1762167281517,0.71,174.9,174.89,1.80965718]
[1762167281836,4.52751483,174.9,174.89,1.80965718]
[1762167282017,0.71,174.9,174.89,1.80965718]
[1762167282331,4.52751483,174.9,174.88,7.52759704]
[1762167282636,11.66,174.89,174.88,5.71793986]
[1762167283124,75.292,174.95,174.88,5.71793986]
[1762167283125,0.71,174.95,174.88,29.97444604]
[1762167283329,15.47760599,174.94,174.9,20.01143509]
[1762167283517,3.81760599,174.93,174.9,20.01143509]
[1762167283716,3.81760599,174.93,174.9,20.04143509]
[1762167284035,3.81760599,174.93,174.92,1.80965718]
[1762167284407,4.52760599,174.93,174.92,1.80965718]
[1762167284825,3.81760599,174.93,174.92,1.80965718]
[1762167285202,4.52760599,174.93,174.9,5.71755288]
[1762167285538,4.52568907,174.92,174.87,5.71853376]
[1762167285715,15.47568907,174.91,174.88,1.80965718]
[1762167285913,3.81568907,174.9,174.88,1.80965718]
[1762167286111,4.52568907,174.9,174.88,1.80965718]
[1762167286317,4.52568907,174.9,174.89,1.80965718]
[1762167286812,3.81568907,174.9,174.89,1.80965718]
[1762167287009,11.66,174.91,174.89,1.80965718]
[1762167287209,11.66,174.91,174.9,1.80965718]
[1762167287525,15.47537565,174.91,174.9,7.52721006]
[1762167287726,16.18537565,174.91,174.9,7.52721006]
[1762167288837,16.18537565,174.91,174.9,1.80965718]
[1762167289025,16.18537565,174.91,174.89,7.52745181]
[1762167289221,0.71,174.9,174.89,7.52745181]
[1762167289821,11.66,174.91,174.89,7.52745181]
[1762167290143,11.66,174.91,174.9,1.80965718]
[1762167290434,15.47527347,174.91,174.9,1.80965718]
[1762167290643,16.18527347,174.91,174.9,1.80965718]
[1762167291142,16.18527347,174.91,174.89,1.80965718]
[1762167291446,0.71,174.9,174.89,1.80965718]
[1762167294324,4.5238175,174.9,174.89,1.80965718]
[1762167294521,4.5238175,174.9,174.86,26.31055788]
[1762167294826,4.5238175,174.89,174.88,1.80965718]
[1762167295129,0.71,174.89,174.88,1.80965718]
[1762167295340,4.5238175,174.89,174.88,1.80965718]
[1762167295524,0.71,174.89,174.88,1.80965718]
[1762167295734,4.5238175,174.89,174.88,1.80965718]
[1762167295924,0.71,174.89,174.88,1.80965718]
[1762167296126,4.5238175,174.89,174.88,1.80965718]
[1762167296344,0.71,174.89,174.88,1.80965718]
[1762167296539,4.5238175,174.89,174.88,1.80965718]
[1762167296818,0.71,174.89,174.88,1.80965718]
[1762167297149,4.5238175,174.89,174.88,1.80965718]
[1762167297446,0.71,174.89,174.88,1.80965718]
[1762167297746,4.5238175,174.89,174.88,1.80965718]
[1762167298040,0.71,174.89,174.88,1.80965718]
[1762167298222,4.5238175,174.89,174.88,7.52786395]
[1762167298422,0.71,174.89,174.88,7.52786395]
[1762167298624,4.5238175,174.89,174.88,7.52786395]
[1762167298820,0.71,174.89,174.88,7.52786395]
[1762167299019,4.5238175,174.89,174.88,7.52786395]
[1762167299219,0.71,174.89,174.88,7.52786395]
[1762167299415,4.5238175,174.89,174.88,7.52786395]
[1762167299730,0.71,174.89,174.88,7.52786395]
[1762167299929,4.5238175,174.89,174.87,1.80965718]
[1762167300279,11.66,174.88,174.84,0.14216157]
[1762167300416,3.81394974,174.87,174.83,0.1]
[1762167300748,3.81394974,174.86,174.83,1.90965718]
[1762167300922,3.81394974,174.86,174.83,5.81980843]
[1762167300923,11.66,174.85,174.83,5.81980843]
[1762167301529,11.66,174.84,174.83,5.81980843]
[1762167301917,0.68,174.88,174.83,5.81980843]
[1762167302114,11.66,174.87,174.84,0.03]
[1762167302325,12.34,174.87,174.83,40.71141376]
[1762167302527,11.66,174.87,174.83,40.74141376]
[1762167303137,11.66,174.87,174.84,0.03]
[1762167303443,11.66,174.87,174.86,1.80965718]
[1762167304145,11.66,174.87,174.86,7.52851798]
[1762167304344,16.15224223,174.87,174.85,2.82906734]
[1762167304527,3.81224223,174.86,174.84,2.82906734]
[1762167304732,12.34,174.87,174.85,2.82906734]
[1762167305136,0.68,174.86,174.85,2.82906734]
[1762167305330,11.66,174.87,174.85,2.82906734]
[1762167305543,0.68,174.91,174.86,2.82906734]
[1762167305846,15.47010163,174.9,174.89,2.82906734]
[1762167306247,16.15010163,174.9,174.89,2.82906734]
[1762167307058,16.15010163,174.9,174.89,8.54694715]
[1762167307552,15.47010163,174.9,174.89,8.54694715]
[1762167307943,16.15010163,174.9,174.89,8.54694715]
[1762167308353,16.15010163,174.9,174.89,2.82906734]
[1762167309336,16.15010163,174.9,174.88,8.54724949]
[1762167309547,12.34,174.9,174.89,2.82906734]
[1762167310044,16.15110013,174.9,174.89,2.82906734]
[1762167311058,16.15110013,174.9,174.86,5.7188608]
[1762167311233,4.4908414,174.89,174.88,2.82906734]
[1762167311429,0.68,174.89,174.88,2.82906734]
[1762167312155,0.68,174.89,174.83,0.1]
[1762167312337,0.68,174.89,174.85,2.82906734]
[1762167312338,3.81098896,174.88,174.85,2.82906734]
[1762167312550,15.47098896,174.87,174.86,2.82906734]
[1762167312864,11.66,174.87,174.86,2.82906734]
[1762167313040,11.66,174.87,174.86,8.54792814]
[1762167313242,11.68,174.87,174.86,8.57792814]
[1762167313564,11.68,174.87,174.86,22.84508014]
[1762167314342,11.68,174.87,174.85,9.93098926]
[1762167314542,11.68,174.87,174.86,2.82906734]
[1762167315860,12.36,174.87,174.83,0.1]
[1762167316052,4.49272788,174.86,174.84,2.82906734]
[1762167316252,4.49272788,174.86,174.85,2.82906734]
[1762167318148,3.81272788,174.86,174.85,8.54825521]
[1762167318468,11.68,174.9,174.85,8.57825521]
[1762167318657,11.68,174.9,174.89,2.82906734]
[1762167319146,11.68,174.9,174.86,9.96098926]
[1762167319347,11.68,174.9,174.89,2.82906734]
[1762167319858,15.49129717,174.9,174.89,2.82906734]
[1762167320454,15.49129717,174.9,174.89,8.54694715]
[1762167321051,15.49129717,174.9,174.89,2.82906734]
[1762167321252,15.49129717,174.9,174.87,5.71853376]
[1762167321453,11.68,174.9,174.85,5.86110007]
[1762167321657,3.81181913,174.89,174.88,2.82906734]
[1762167322177,4.49181913,174.89,174.85,5.7189385]
[1762167322344,11.68,174.9,174.88,2.82906734]
[1762167322544,3.81244115,174.89,174.88,2.82906734]
[1762167322957,4.49244115,174.89,174.88,2.82906734]
[1762167323157,4.49244115,174.89,174.86,5.71869958]
[1762167323357,3.81228974,174.88,174.86,2.82906734]
[1762167323543,3.81228974,174.87,174.84,5.71929185]
[1762167323746,11.68,174.86,174.84,5.71929185]
[1762167323945,11.68,174.86,174.83,0.1]
[1762167324252,12.4,174.86,174.83,20.11934189]
[1762167324965,12.4,174.86,174.85,2.82906734]
[1762167325163,11.68,174.86,174.85,2.82906734]
[1762167325655,11.68,174.86,174.85,23.42106734]
[1762167326764,11.68,174.86,174.85,29.14025521]
[1762167328272,11.68,174.86,174.85,39.10124447]
[1762167328774,11.68,174.9,174.85,53.39921415]
[1762167328970,11.68,174.9,174.89,2.82906734]
[1762167329175,12.35,174.9,174.89,2.82906734]
[1762167330258,12.35,174.9,174.89,8.54694715]
[1762167330457,11.68,174.9,174.89,8.54694715]
[1762167331675,12.35,174.9,174.87,20.592]
[1762167331874,11.68,174.9,174.89,2.82906734]
[1762167332055,11.68,174.9,174.88,20.592]
[1762167332254,12.35,174.9,174.89,2.82906734]
[1762167332461,11.68,174.9,174.89,2.82906734]
[1762167332779,12.35,174.9,174.89,2.82906734]
[1762167333660,12.35,174.9,174.89,8.54694715]
[1762167334356,11.68,174.9,174.89,8.54694715]
[1762167335271,11.68,174.9,174.89,18.47793641]
[1762167335579,11.66,174.94,174.9,9.93098926]
[1762167335785,11.66,174.94,174.93,2.82906734]
[1762167336854,11.66,174.94,174.93,33.3520566]
[1762167337074,11.66,174.94,174.93,23.56322891]
[1762167337760,11.66,174.94,174.93,29.27980125]
[1762167338696,0.68,175.02,174.97,20.592]
[1762167338868,31.45269898,175.05,175.01,2.82906734]
[1762167339068,11.66,175.03,175.0,2.82906734]
[1762167339381,11.66,175.03,174.98,2.82906734]
[1762167339573,0.68,175.02,174.99,2.82906734]
[1762167339967,0.68,175.02,175.0,2.82906734]
[1762167340491,0.68,175.02,174.99,2.82906734]
[1762167341190,0.68,175.02,174.98,8.54371965]
[1762167341981,0.68,175.02,174.99,2.82906734]
[1762167343483,6.3937103,175.02,174.99,2.82906734]
[1762167343687,5.7137103,175.02,174.99,2.82906734]
[1762167343890,0.68,175.01,174.99,2.82906734]
[1762167344283,0.68,175.01,174.97,5.71522833]
[1762167344479,0.68,175.01,174.98,2.82906734]
[1762167344778,0.68,175.01,174.99,2.82906734]
[1762167344979,0.68,175.01,175.0,2.82906734]
[1762167345704,12.34,175.03,175.0,2.82906734]
[1762167346000,0.68,175.02,175.01,2.82906734]
[1762167346295,0.68,175.02,175.0,2.82906734]
[1762167349477,0.68,175.02,175.01,2.82906734]
[1762167350293,0.68,175.02,175.01,8.54302654]
[1762167350487,0.68,175.02,175.01,2.82906734]
[1762167350897,0.68,175.02,175.01,8.54302654]
[1762167351117,11.66,175.03,175.01,8.54302654]
[1762167351410,0.68,175.02,175.01,5.7139592]
[1762167351780,0.68,175.02,174.98,14.28734712]
[1762167351998,0.68,175.02,174.99,5.71461226]
[1762167352195,0.68,175.02,174.98,20.00228597]
[1762167352396,0.68,175.02,175.0,2.82906734]
[1762167353305,0.68,175.02,175.01,2.82906734]
[1762167355697,0.68,175.02,175.01,8.54302654]
[1762167356227,11.66,175.03,175.01,8.54302654]
[1762167356382,12.34,175.03,175.02,2.82906734]
[1762167356783,11.66,175.03,175.02,2.82906734]
[1762167358403,11.66,175.03,175.02,8.54270006]
[1762167360386,11.66,175.03,175.02,5.71363272]
[1762167360593,11.66,175.03,175.02,8.54270006]
[1762167360594,12.32,175.03,175.02,8.54270006]
[1762167362201,12.32,175.03,174.98,9.93098926]
[1762167362202,12.32,175.03,174.99,8.5436796]
[1762167362407,0.66,175.02,174.99,5.71461226]
[1762167362610,0.66,175.02,174.99,8.5436796]
[1762167362779,0.66,175.02,174.99,5.71461226]
[1762167363210,0.66,175.02,174.99,8.5436796]